fUST/lending_fUST_20240924
["ID","MTS","AMOUNT","RATE_DAILY","PERIOD"]
[339015164,1727128242813,-500.0,0.00032876,30]
[339015165,1727128242823,-200.994686,0.00032876,7]
[339015166,1727128242832,-200.994686,0.00032876,7]
[339015167,1727128242841,-200.994686,0.00032876,7]
[339015168,1727128242851,-200.994686,0.00032876,7]
[339015169,1727128242860,-200.994686,0.00032876,7]
[339015170,1727128242869,-200.994686,0.00032876,7]
[339015171,1727128242879,-200.994686,0.00032876,7]
[339015172,1727128242888,-200.994686,0.00032876,7]
[339015173,1727128242897,-200.994686,0.00032876,7]
[339015174,1727128242906,-617.747845,0.00032876,7]
[339015175,1727128242915,-200.994686,0.00032876,7]
[339015176,1727128242924,-500.0,0.00032876,30]
[339015177,1727128242934,-617.747845,0.00032876,7]
[339015178,1727128242943,-500.0,0.00032876,30]
[339015179,1727128242952,-200.994686,0.00032876,7]
[339015180,1727128242962,-617.747845,0.00032876,7]
[339015181,1727128242972,-200.994686,0.00032876,7]
[339015182,1727128242983,-617.747845,0.00032876,7]
[339015184,1727128242993,-191.306318,0.00032876,7]
[339015186,1727128243002,-617.747845,0.00032876,7]
[339015187,1727128243012,-191.306318,0.00032876,7]
[339015189,1727128243022,-500.0,0.00032876,30]
[339015190,1727128243032,-617.747845,0.00032876,7]
[339015191,1727128243041,-390.02665231,0.00032876,7]
[339015211,1727129142162,-276.605597,0.00027397,2]
[339015212,1727129142187,-300.0,0.00029608,2]
[339015213,1727129142211,-300.0,0.00029608,2]
[339015214,1727129142235,-273.20342868,0.00029609,2]
[339015216,1727129229151,-300.0,0.00029608,2]
[339015217,1727129229172,-300.0,0.00029608,2]
[339015218,1727129229194,-1854.71774109,0.00029609,2]
[339015219,1727129235102,-18482.60822899,0.00029609,2]
[339015221,1727129251136,-1038.99736911,0.00029609,2]
[339015228,1727129365994,472.77428548,0.000293,7]
[339015262,1727129432472,-300.0,0.00028338,2]
[339015263,1727129432481,-1090.84235969,0.00028339,2]
[339015268,1727129438570,-23809.15764031,0.00028339,2]
[339015269,1727129438580,-27.22571452,0.000293,7]
[339015270,1727129438589,-500.0,0.000293,7]
[339015271,1727129438598,-233.66554,0.00029619,2]
[339015272,1727129438607,-550.12903221,0.000299,2]
[339015273,1727129438617,-611.44350714,0.00029998,2]
[339015274,1727129438626,-500.0,0.00029998,2]
[339015275,1727129438635,-500.0,0.00029998,2]
[339015276,1727129438645,-500.0,0.00029998,2]
[339015277,1727129438654,-500.0,0.00029998,2]
[339015278,1727129438667,-515.15987451,0.00029998,2]
[339015279,1727129438676,-240.00177487,0.00029999,2]
[339015280,1727129438685,-500.0,0.00029999,2]
[339015281,1727129438694,-600.49939425,0.00029999,2]
[339015282,1727129438704,-95492.83553,0.0003,2]
[339015283,1727129438713,-167.671246,0.00030281,2]
[339015284,1727129438722,-167.671246,0.00030412,2]
[339015285,1727129438731,-167.671246,0.00030544,2]
[339015286,1727129438740,-420.0,0.00030594,2]
[339015287,1727129438749,-167.671246,0.00030675,2]
[339015288,1727129438759,-167.671246,0.00030807,2]
[339015289,1727129438768,-2086.17943578,0.00030924,4]
[339015290,1727129438777,-167.671246,0.00030938,2]
[339015291,1727129438786,-167.671246,0.0003107,2]
[339015292,1727129438799,-167.671246,0.00031201,2]
[339015293,1727129438809,-153.0,0.00031315,2]
[339015294,1727129438818,-167.671246,0.00031333,2]
[339015295,1727129438828,-167.671246,0.00031464,2]
[339015296,1727129438837,-167.671246,0.00031595,2]
[339015297,1727129438847,-550.12903219,0.00031614,2]
[339015298,1727129438856,-167.671246,0.00031727,2]
[339015299,1727129438865,-167.671246,0.00031858,2]
[339015300,1727129438874,-306.0,0.00031978,2]
[339015301,1727129438884,-153.0,0.00031983,2]
[339015302,1727129438893,-153.0,0.00031983,2]
[339015303,1727129438903,-150.19125691,0.00032513,2]
[339015304,1727129438914,-6844.415778,0.0003266,2]
[339015305,1727129438924,-1143.98643036,0.00032764,15]
[339015306,1727129438933,-133962.58357,0.00032765,2]
[339015307,1727129438942,-4172.35887156,0.00032766,4]
[339015308,1727129438951,-1000.0,0.00032776,2]
[339015309,1727129438960,-88888.0,0.00032776,5]
[339015310,1727129438969,-25034.1532294,0.00032856,4]
[339015311,1727129438979,-5322.17328311,0.00032866,4]
[339015324,1727129440183,-5108.72389579,0.00032866,4]
[339015325,1727129440193,-381.742097,0.00032866,7]
[339015326,1727129440203,-151.0,0.00032866,7]
[339015327,1727129440213,-381.742097,0.00032866,7]
[339015328,1727129440222,-9.29191021,0.00032866,7]
[339015333,1727129440294,-115.44415212,0.00032866,7]
[339015337,1727129443376,-29.72094267,0.00032866,7]
[339015338,1727129443388,-154.457005,0.00032866,7]
[339015339,1727129443397,-192.0,0.0003287,27]
[339015340,1727129443407,-186.87065262,0.00032875,2]
[339015341,1727129443664,-6.13406038,0.00032875,2]
[339015344,1727129446172,-1234.658362,0.000328,10]
[339015345,1727129446182,-6439.14567553,0.00032875,2]
[339015346,1727129446192,-273.24042785,0.00032876,15]
[339015347,1727129446202,-151.0,0.00032876,7]
[339015348,1727129446212,-151.0,0.00032876,7]
[339015349,1727129446222,-241.767822,0.00032876,7]
[339015350,1727129446232,-151.0,0.00032876,7]
[339015351,1727129446241,-500.0,0.00032876,10]
[339015352,1727129446251,-301.015303,0.00032876,7]
[339015354,1727129446261,-301.015303,0.00032876,7]
[339015356,1727129446271,-151.0,0.00032876,7]
[339015357,1727129446281,-151.0,0.00032876,7]
[339015358,1727129446290,-159.564646,0.00032876,7]
[339015359,1727129446300,-151.0,0.00032876,7]
[339015360,1727129446309,-151.0,0.00032876,7]
[339015361,1727129446319,-151.0,0.00032876,7]
[339015362,1727129446328,-102.00202441,0.00032876,30]
[339015363,1727129446370,-42.33244785,0.00032876,30]
[339015366,1727129909775,5000.0,0.00023531,2]
[339015376,1727130004465,839.24,0.0002501,2]
[339015377,1727130092506,1030.56841598,0.00023531,2]
[339015378,1727130205429,302.39527296,0.00024885,2]
[339015379,1727130210934,200.0,0.00023,2]
[339015380,1727130211469,201.0,0.00024164,2]
[339015382,1727130305562,3890.26,0.0002501,2]
[339015386,1727130346158,-302.39527296,0.00025134,2]
[339015387,1727130346180,-453.59290944,0.00025383,4]
[339015388,1727130346201,-486.87630791,0.00025471,2]
[339015394,1727130426121,-133.5352448,0.00025471,2]
[339015395,1727130426142,-453.59290944,0.00025631,4]
[339015396,1727130426163,-453.59290944,0.0002588,4]
[339015397,1727130426185,-453.59290944,0.00026129,4]
[339015398,1727130426206,-453.59290944,0.00026378,4]
[339015399,1727130426227,-169.33411738,0.00026543,2]
[339015400,1727130426251,-154.06709926,0.00026627,6]
[339015401,1727130426272,-166.666666,0.00027331,2]
[339015402,1727130426292,-499.999999,0.00027397,2]
[339015403,1727130426313,-262.775317,0.00027397,2]
[339015404,1727130426334,-300.0,0.00027863,2]
[339015405,1727130426355,-300.0,0.00027863,2]
[339015406,1727130426376,-200.0,0.00027863,15]
[339015407,1727130426396,-2410.46970449,0.00027864,2]
[339015408,1727130438117,-2437.18022284,0.00027864,2]
[339015409,1727130443825,38419.46366612,0.0001915,2]
[339015410,1727130457059,69434.42131625,0.000218,2]
[339015411,1727130472051,240.53907396,0.00023,2]
[339015412,1727130472233,53439.30352674,0.0002,2]
[339015413,1727130482496,16035.43555794,0.00018447,2]
[339015414,1727130488792,1215.4548922,0.000167,2]
[339015415,1727130495664,1774.82091909,0.0002,2]
[339015416,1727130503577,506.44369645,0.000212,2]
[339015417,1727130505080,1319.42453558,0.000223,2]
[339015418,1727130505289,8366.85219352,0.00018,2]
[339015419,1727130505433,259.61197807,0.00021,2]
[339015420,1727130508116,2001.12071531,0.000176,2]
[339015421,1727130510008,17487.00617488,0.00019,2]
[339015422,1727130513020,11450.9045886,0.00023,2]
[339015423,1727130513547,10100.09173623,0.0002,2]
[339015424,1727130515624,4829.68485722,0.000235,2]
[339015425,1727130517224,10190.42235507,0.00021,2]
[339015426,1727130517253,233.96002967,0.00021,2]
[339015427,1727130517968,1033.42855136,0.00025,2]
[339015428,1727130518891,2345.396287,0.00023,2]
[339015429,1727130518952,146813.0,0.00020377,2]
[339015430,1727130519312,4311.15355792,0.0002,2]
[339015431,1727130519520,1313.69696028,0.00022,2]
[339015432,1727130519596,2332.12968783,0.00025,120]
[339015433,1727130519949,300737.83225843,0.0002,2]
[339015434,1727130520421,817772.04692628,0.00025,2]
[339015435,1727130520717,75611.85410748,0.00025,2]
[339015436,1727130520867,3227.27824192,0.0001999,2]
[339015437,1727130520892,25000.0,0.0001999,2]
[339015438,1727130520916,25000.0,0.0001999,2]
[339015439,1727130520941,25000.0,0.0001999,2]
[339015440,1727130520965,59728.22935106,0.0001999,2]
[339015441,1727130521044,348.41673349,0.0002,2]
[339015442,1727130521937,14609.64050535,0.0002061,2]
[339015444,1727130522903,150.0,0.0002,2]
[339015445,1727130522942,318.79762683,0.0002,2]
[339015446,1727130522970,5302.27414924,0.00018,2]
[339015448,1727130545151,-2537.64875471,0.0002375,2]
[339015449,1727130548117,-362.35124529,0.0002375,2]
[339015450,1727130551114,-500.0,0.00024,2]
[339015451,1727130551143,-300.0,0.00024999,2]
[339015452,1727130551172,-12531.8104843,0.00025,2]
[339015453,1727130551205,-44028.01408476,0.00025,2]
[339015454,1727130551226,-164.45526449,0.00025,2]
[339015455,1727130551246,-202.06979341,0.00025,2]
[339015456,1727130551266,-10364.0,0.00025,2]
[339015457,1727130551287,-344.36587002,0.00025,2]
[339015458,1727130551307,-218981.9574858,0.0002509,2]
[339015460,1727130556116,-27646.73609671,0.0002509,2]
[339015461,1727130558115,-11180.71489093,0.0002509,2]
[339015462,1727130560155,-16635.81915835,0.0002509,2]
[339015463,1727130571095,-730.34840399,0.0002509,2]
[339015465,1727130606428,150.0,0.00025,120]
[339015466,1727130608482,620.02160897,0.00021339,2]
[339015467,1727130609604,620.00108045,0.00022406,2]
[339015468,1727130610718,17.28716382,0.00023526,2]
[339015469,1727130610740,257.99936424,0.00023526,2]
[339015567,1727130640335,-344.71352596,0.00023526,2]
[339015569,1727130640344,-300.0,0.00025089,2]
[339015571,1727130640354,-455.69968456,0.00025089,2]
[339015573,1727130640363,-39337.56664689,0.0002509,2]
[339015575,1727130640373,-412.59677416,0.00025864,2]
[339015577,1727130640382,-172.8752534,0.00025964,2]
[339015579,1727130640392,-524.87057753,0.00026,2]
[339015581,1727130640402,-7458.94652043,0.0002649,2]
[339015583,1727130640411,-420.0,0.00027177,2]
[339015585,1727130640420,-23284.5615328,0.00027274,2]
[339015587,1727130640430,-500.0,0.000274,5]
[339015589,1727130640439,-500.32795844,0.000274,5]
[339015591,1727130640448,-500.0,0.000274,2]
[339015593,1727130640457,-500.0,0.000274,5]
[339015595,1727130640467,-284.05623854,0.00027499,2]
[339015597,1727130640476,-411.39391615,0.00027499,2]
[339015599,1727130640485,-278.38540086,0.00027499,2]
[339015601,1727130640495,-500.0,0.00027499,2]
[339015603,1727130640506,-500.0,0.00027499,2]
[339015605,1727130640515,-345.68909933,0.00027499,2]
[339015607,1727130640525,-500.0,0.00027499,2]
[339015609,1727130640534,-500.0,0.00027499,2]
[339015611,1727130640543,-500.0,0.00027499,2]
[339015612,1727130640553,-229.22391609,0.00027499,2]
[339015614,1727130640562,-500.0,0.00027499,2]
[339015616,1727130640571,-500.0,0.00027499,2]
[339015618,1727130640580,-500.0,0.00027499,2]
[339015620,1727130640590,-500.0,0.00027499,2]
[339015623,1727130640600,-44007.25821541,0.000275,2]
[339015625,1727130640609,-1350.71362034,0.000275,30]
[339015626,1727130640618,-660.0,0.0002786,2]
[339015628,1727130640628,-152.35007267,0.00027864,2]
[339015630,1727130640637,-1000.0,0.00027948,5]
[339015632,1727130640647,-1000.0,0.00027948,2]
[339015634,1727130640656,-1000.0,0.00027948,5]
[339015636,1727130640666,-31737.82340061,0.0002799,2]
[339015638,1727130640676,-7735.61602152,0.00028,2]
[339015640,1727130640685,-151.84,0.00028,14]
[339015642,1727130640695,-358.6674568,0.00028135,120]
[339015644,1727130640704,-412.59677414,0.00028155,2]
[339015646,1727130640713,-166.666666,0.00028263,2]
[339015648,1727130640723,-380.0,0.00028313,2]
[339015650,1727130640732,-1095.993035,0.00028331,2]
[339015652,1727130640742,-1095.993035,0.00028338,2]
[339015654,1727130640761,-1095.993035,0.00028346,2]
[339015656,1727130640771,-1095.993035,0.00028353,2]
[339015658,1727130640781,-1095.993035,0.00028361,2]
[339015660,1727130640791,-1095.993035,0.00028368,2]
[339015662,1727130640802,-1095.993035,0.00028376,2]
[339015664,1727130640813,-1095.993035,0.00028383,2]
[339015666,1727130640822,-1095.993035,0.00028391,2]
[339015668,1727130640831,-1095.993035,0.00028398,2]
[339015670,1727130640842,-1095.993035,0.00028405,2]
[339015672,1727130640851,-1095.993035,0.00028413,2]
[339015674,1727130640861,-1095.993035,0.0002842,2]
[339015676,1727130640870,-1095.993035,0.00028428,2]
[339015678,1727130640881,-1095.993035,0.00028435,2]
[339015680,1727130640890,-1095.993035,0.00028443,2]
[339015682,1727130640899,-1095.993035,0.0002845,2]
[339015684,1727130640909,-1095.993035,0.00028458,2]
[339015686,1727130640919,-1095.993035,0.00028465,2]
[339015688,1727130640929,-1095.993035,0.00028472,2]
[339015690,1727130640938,-1500.0,0.00028659,5]
[339015692,1727130640948,-196.42918529,0.00028659,2]
[339015694,1727130640957,-1500.96969178,0.00028659,5]
[339015696,1727130640967,-168.452751,0.00028855,2]
[339015698,1727130640977,-854.9323943,0.00029,2]
[339015700,1727130640987,-36049.32784177,0.00029,2]
[339015702,1727130640996,-158.68890106,0.00029124,2]
[339015705,1727130641013,-0.38418894,0.00029124,2]
[339015707,1727130641024,-166.666666,0.00029194,2]
[339015709,1727130641033,-159.07309,0.00029341,2]
[339015711,1727130641043,-587.0,0.00029439,2]
[339015713,1727130641052,-2000.0,0.00029448,5]
[339015715,1727130641062,-159.07309,0.00029557,2]
[339015717,1727130641071,-8.24182147,0.00029581,2]
[339015754,1727130643496,-500.0,0.000274,5]
[339015756,1727130643506,-1000.0,0.00027948,5]
[339015758,1727130643516,-1500.0,0.00028659,5]
[339015760,1727130643526,-310.77858163,0.00029581,2]
[339015762,1727130643536,-159.07309,0.00029774,2]
[339015764,1727130643546,-165.9032026,0.00029788,2]
[339015766,1727130643555,-151.84,0.000298,14]
[339015768,1727130643565,-159.07309,0.00029991,2]
[339015770,1727130643575,-200.0,0.0003,2]
[339015772,1727130643584,-1500.0,0.0003,2]
[339015773,1727130643594,-113.77244737,0.0003,7]
[339015774,1727130643702,-186.22800102,0.0003,7]
[339015775,1727130643711,-262.0,0.0003,2]
[339015776,1727130643721,-166.666666,0.00030126,2]
[339015777,1727130643730,-159.07309,0.00030208,2]
[339015779,1727130643740,-2500.0,0.00030292,5]
[339015780,1727130643752,-1051.19369408,0.00030396,2]
[339015781,1727130643762,-207.06398915,0.00030396,2]
[339015782,1727130643772,-24900.0,0.00030406,2]
[339015783,1727130643781,-159.07309,0.00030424,2]
[339015784,1727130643790,-412.59677414,0.00030446,2]
[339015785,1727130643802,-500.0,0.000305,5]
[339015786,1727130643814,-303.89639885,0.000305,5]
[339015787,1727130643823,-500.0,0.000305,5]
[339015788,1727130643833,-500.0,0.000305,5]
[339015789,1727130643843,-159.07309,0.00030641,2]
[339015790,1727130643851,-186.60284914,0.0003065,2]
[339015791,1727130643861,-151.0,0.00030924,2]
[339015792,1727130643871,-158.675,0.00030971,27]
[339015793,1727130643881,-1000.0,0.00031048,5]
[339015795,1727130643891,-1000.0,0.00031048,5]
[339015797,1727130643901,-500.31559626,0.00031048,5]
[339015799,1727130643911,-166.666666,0.00031057,2]
[339015801,1727130643920,-420.0,0.000313,120]
[339015803,1727130643929,-151.84,0.000313,14]
[339015805,1727130643939,-420.0,0.000315,120]
[339015807,1727130643949,-420.0,0.000317,120]
[339015808,1727130643958,-687.6,0.0003173,6]
[339015810,1727130643968,-1500.0,0.00031759,5]
[339015812,1727130643977,-1500.0,0.00031759,5]
[339015814,1727130643987,-823.0,0.0003189,2]
[339015816,1727130643998,-420.0,0.000319,120]
[339015818,1727130644008,-411.8657486,0.00031934,30]
[339015819,1727130644018,-411.8657486,0.00031935,30]
[339015821,1727130644028,-411.8657486,0.00031936,30]
[339015823,1727130644038,-411.8657486,0.00031936,30]
[339015825,1727130644047,-712.0,0.00032,2]
[339015827,1727130644057,-48045.317,0.00032074,2]
[339015829,1727130644066,-420.0,0.000321,120]
[339015831,1727130644076,-153.0,0.00032137,2]
[339015833,1727130644085,-153.0,0.00032137,2]
[339015835,1727130644096,-153.0,0.00032137,2]
[339015837,1727130644105,-5000.0,0.00032198,7]
[339015839,1727130644115,-712.0,0.00032243,2]
[339015841,1727130644124,-687.6,0.00032283,6]
[339015843,1727130644134,-420.0,0.000323,120]
[339015845,1727130644144,-151.84,0.000324,14]
[339015847,1727130644154,-320.0,0.000325,2]
[339015849,1727130644164,-712.0,0.00032517,2]
[339015851,1727130644174,-1501.01932587,0.00032548,5]
[339015853,1727130644183,-2000.0,0.00032548,5]
[339015855,1727130644193,-151.0,0.00032548,7]
[339015857,1727130644202,-151.0,0.00032548,7]
[339015859,1727130644212,-420.0,0.000326,120]
[339015861,1727130644221,-177.0,0.0003262,27]
[339015863,1727130644231,-1000.0,0.000327,2]
[339015865,1727130644240,-412.59677414,0.00032737,2]
[339015867,1727130644255,-830.4072442,0.0003275,35]
[339015869,1727130644264,-411.1939166,0.00032751,35]
[339015871,1727130644274,-411.8657486,0.00032752,34]
[339015873,1727130644284,-411.8657486,0.00032754,32]
[339015876,1727130644294,-411.8657486,0.00032755,31]
[339015878,1727130644304,-151.0,0.0003279,7]
[339015880,1727130644313,-192.31014,0.0003279,7]
[339015882,1727130644323,-312.242753,0.0003279,7]
[339015884,1727130644333,-151.0,0.0003279,7]
[339015885,1727130644342,-192.31014,0.0003279,7]
[339015887,1727130644351,-312.242753,0.0003279,7]
[339015889,1727130644361,-151.0,0.0003279,7]
[339015891,1727130644371,-1668.380191,0.0003279,7]
[339015893,1727130644380,-3631.147654,0.0003279,7]
[339015895,1727130644390,-1668.380191,0.0003279,7]
[339015897,1727130644400,-3631.147654,0.0003279,7]
[339015899,1727130644409,-151.0,0.0003279,7]
[339015901,1727130644419,-151.0,0.0003279,7]
[339015903,1727130644429,-151.0,0.0003279,7]
[339015905,1727130644438,-167.658974,0.0003279,7]
[339015907,1727130644448,-665.214961,0.0003279,7]
[339015909,1727130644457,-665.214961,0.0003279,7]
[339015911,1727130644466,-438.288088,0.0003279,7]
[339015913,1727130644476,-438.288088,0.0003279,7]
[339015915,1727130644485,-1850.385799,0.0003279,7]
[339015917,1727130644495,-469.079257,0.0003279,7]
[339015919,1727130644506,-1850.385799,0.0003279,7]
[339015921,1727130644515,-469.079257,0.0003279,7]
[339015923,1727130644525,-243.578179,0.0003279,7]
[339015925,1727130644535,-712.0,0.00032791,2]
[339015927,1727130644545,-192.83,0.00032799,2]
[339015929,1727130644555,-192.83,0.00032799,2]
[339015931,1727130644565,-192.83,0.00032799,2]
[339015933,1727130644575,-192.83,0.00032799,2]
[339015935,1727130644584,-192.83,0.00032799,2]
[339015937,1727130644594,-192.83,0.00032799,2]
[339015939,1727130644604,-192.83,0.00032799,2]
[339015941,1727130644614,-192.83,0.00032799,2]
[339015943,1727130644623,-3370.70576615,0.000328,5]
[339015945,1727130644632,-3370.70576612,0.000328,5]
[339015947,1727130644642,-3370.70576612,0.000328,5]
[339015949,1727130644651,-3370.70576612,0.000328,5]
[339015951,1727130644660,-16164.63354202,0.000328,5]
[339015953,1727130644669,-16164.63354202,0.000328,5]
[339015954,1727130644679,-16164.63354202,0.000328,5]
[339015956,1727130644688,-16164.63354202,0.000328,5]
[339015958,1727130644697,-3000.0,0.000328,13]
[339015960,1727130644707,-151.0,0.000328,7]
[339015962,1727130644716,-3232.967153,0.000328,7]
[339015964,1727130644726,-3232.967153,0.000328,7]
[339015966,1727130644736,-151.0,0.000328,7]
[339015968,1727130644746,-151.0,0.000328,7]
[339015970,1727130644755,-151.0,0.000328,7]
[339015972,1727130644764,-274.842574,0.000328,7]
[339015974,1727130644775,-151.0,0.000328,7]
[339015976,1727130644785,-8091.310757,0.000328,7]
[339015978,1727130644795,-274.842574,0.000328,7]
[339015980,1727130644804,-230.619433,0.000328,7]
[339015982,1727130644816,-151.0,0.000328,7]
[339015984,1727130644825,-2704.193134,0.000328,7]
[339015986,1727130644835,-2704.193134,0.000328,7]
[339015988,1727130644844,-151.0,0.000328,7]
[339015989,1727130644854,-151.0,0.000328,7]
[339015991,1727130644864,-192.31014,0.000328,7]
[339015993,1727130644873,-312.242753,0.000328,7]
[339015995,1727130644884,-192.31014,0.000328,7]
[339015997,1727130644893,-312.242753,0.000328,7]
[339015999,1727130644902,-151.0,0.000328,7]
[339016000,1727130644913,-151.0,0.000328,7]
[339016001,1727130644922,-192.31014,0.000328,7]
[339016002,1727130644931,-312.242753,0.000328,7]
[339016003,1727130644941,-192.31014,0.000328,7]
[339016004,1727130644950,-312.242753,0.000328,7]
[339016005,1727130644959,-150.0,0.000328,2]
[339016006,1727130644969,-1668.380191,0.000328,7]
[339016007,1727130644978,-1668.380191,0.000328,7]
[339016008,1727130644988,-3631.147654,0.000328,7]
[339016009,1727130644999,-1668.380191,0.000328,7]
[339016010,1727130645008,-1668.380191,0.000328,7]
[339016011,1727130645018,-3631.147654,0.000328,7]
[339016012,1727130645027,-3631.147654,0.000328,7]
[339016013,1727130645037,-3631.147654,0.000328,7]
[339016014,1727130645046,-151.0,0.000328,7]
[339016015,1727130645055,-151.0,0.000328,7]
[339016016,1727130645064,-154.329599,0.000328,7]
[339016017,1727130645074,-151.0,0.000328,7]
[339016018,1727130645083,-151.0,0.000328,7]
[339016019,1727130645093,-2000.0,0.000328,60]
[339016020,1727130645102,-2000.0,0.000328,60]
[339016021,1727130645112,-2000.0,0.000328,60]
[339016022,1727130645122,-674.517847,0.000328,60]
[339016023,1727130645131,-665.214961,0.000328,7]
[339016024,1727130645140,-665.214961,0.000328,7]
[339016025,1727130645150,-665.214961,0.000328,7]
[339016026,1727130645159,-665.214961,0.000328,7]
[339016027,1727130645168,-151.0,0.000328,7]
[339016028,1727130645178,-151.0,0.000328,7]
[339016029,1727130645189,-438.288088,0.000328,7]
[339016030,1727130645198,-438.288088,0.000328,7]
[339016031,1727130645207,-438.288088,0.000328,7]
[339016032,1727130645216,-438.288088,0.000328,7]
[339016033,1727130645225,-806.543737,0.000328,7]
[339016034,1727130645234,-806.543737,0.000328,7]
[339016035,1727130645245,-151.0,0.000328,7]
[339016036,1727130645254,-806.543737,0.000328,7]
[339016037,1727130645263,-151.0,0.000328,7]
[339016038,1727130645273,-806.543737,0.000328,7]
[339016039,1727130645283,-765.912872,0.000328,7]
[339016040,1727130645292,-765.912872,0.000328,7]
[339016041,1727130645302,-151.0,0.000328,7]
[339016042,1727130645311,-151.0,0.000328,7]
[339016043,1727130645321,-765.912872,0.000328,7]
[339016044,1727130645330,-765.912872,0.000328,7]
[339016045,1727130645340,-1850.385799,0.000328,7]
[339016046,1727130645350,-1850.385799,0.000328,7]
[339016047,1727130645359,-469.079257,0.000328,7]
[339016048,1727130645369,-469.079257,0.000328,7]
[339016049,1727130645378,-1850.385799,0.000328,7]
[339016050,1727130645387,-1850.385799,0.000328,7]
[339016051,1727130645396,-151.0,0.000328,7]
[339016052,1727130645405,-151.0,0.000328,7]
[339016053,1727130645414,-469.079257,0.000328,7]
[339016054,1727130645423,-469.079257,0.000328,7]
[339016055,1727130645432,-165.856117,0.000328,7]
[339016056,1727130645441,-165.856117,0.000328,7]
[339016057,1727130645451,-165.856117,0.000328,7]
[339016058,1727130645460,-165.856117,0.000328,7]
[339016059,1727130645470,-151.0,0.000328,7]
[339016060,1727130645479,-151.0,0.000328,7]
[339016061,1727130645488,-151.0,0.000328,7]
[339016062,1727130645498,-151.0,0.000328,7]
[339016063,1727130645508,-243.578179,0.000328,7]
[339016064,1727130645517,-243.578179,0.000328,7]
[339016065,1727130645526,-3000.0,0.0003281,13]
[339016066,1727130645536,-3000.0,0.0003282,13]
[339016067,1727130645545,-3000.0,0.0003283,13]
[339016068,1727130645554,-151.0,0.0003283,7]
[339016069,1727130645563,-1017.832138,0.0003283,7]
[339016070,1727130645572,-151.0,0.0003283,7]
[339016071,1727130645582,-274.842574,0.0003283,7]
[339016072,1727130645592,-151.0,0.0003283,7]
[339016073,1727130645601,-274.842574,0.0003283,7]
[339016074,1727130645610,-2704.193134,0.0003283,7]
[339016075,1727130645619,-2704.193134,0.0003283,7]
[339016076,1727130645627,-151.0,0.0003283,7]
[339016077,1727130645636,-806.543737,0.0003283,7]
[339016078,1727130645645,-151.0,0.0003283,7]
[339016079,1727130645654,-806.543737,0.0003283,7]
[339016080,1727130645663,-765.912872,0.0003283,7]
[339016081,1727130645672,-151.0,0.0003283,7]
[339016082,1727130645682,-765.912872,0.0003283,7]
[339016083,1727130645691,-151.0,0.0003283,7]
[339016084,1727130645700,-165.856117,0.0003283,7]
[339016085,1727130645709,-165.856117,0.0003283,7]
[339016086,1727130645719,-151.0,0.0003283,7]
[339016087,1727130645728,-151.0,0.0003283,7]
[339016088,1727130645737,-687.6,0.00032835,6]
[339016089,1727130645748,-3000.0,0.0003284,13]
[339016090,1727130645757,-151.0,0.0003284,7]
[339016091,1727130645767,-151.0,0.0003284,7]
[339016092,1727130645776,-3232.967153,0.0003284,7]
[339016093,1727130645786,-3232.967153,0.0003284,7]
[339016094,1727130645795,-3232.967153,0.0003284,7]
[339016095,1727130645804,-3232.967153,0.0003284,7]
[339016096,1727130645816,-151.0,0.0003284,7]